lending/lending_fUSD_20251106
["ID","MTS","AMOUNT","RATE_DAILY","PERIOD"]
[393298584,1762432241835,-250.0,0.00017,2]
[393298585,1762432241843,-2000.0,0.00017,2]
[393298586,1762432241852,-477.12,0.00017041,2]
[393298587,1762432241861,-5000.0,0.00017101,2]
[393298588,1762432241870,-277.66,0.00017239,2]
[393298589,1762432241878,-4692.0,0.00017243,2]
[393298590,1762432241887,-245.31,0.00017261,2]
[393298591,1762432241896,-3594.05173692,0.00017263,2]
[393298592,1762432241906,-150.0,0.00017339,2]
[393298593,1762432241916,-4692.0,0.00017422,2]
[393298594,1762432241926,-477.87911524,0.00017473,2]
[393298595,1762432241936,-150.28,0.000175,2]
[393298596,1762432241945,-277.68,0.00017513,2]
[393298597,1762432241955,-477.12,0.00017522,2]
[393298598,1762432241964,-477.12,0.00017522,2]
[393298599,1762432241973,-477.12,0.00017522,2]
[393298600,1762432241983,-477.12,0.00017522,2]
[393298601,1762432241992,-477.12,0.00017522,2]
[393298602,1762432242001,-477.12,0.00017522,2]
[393298603,1762432242012,-477.12,0.00017522,2]
[393298604,1762432242021,-477.12,0.00017522,2]
[393298605,1762432242029,-4692.0,0.00017529,2]
[393298606,1762432242039,-3594.05173692,0.00017581,2]
[393298607,1762432242048,-221.80400124,0.00017625,2]
[393298608,1762432242057,-1170.0,0.00017626,2]
[393298609,1762432242066,-4692.0,0.00017655,2]
[393298610,1762432242076,-3153.97857791,0.0001767,2]
[393298611,1762432242086,-574.0,0.000177,2]
[393298612,1762432242097,-607.0,0.000177,2]
[393298613,1762432242106,-2141.0,0.000177,2]
[393298614,1762432242115,-1315.0,0.000177,2]
[393298615,1762432242124,-1170.0,0.0001771,2]
[393298616,1762432242133,-4692.0,0.00017782,2]
[393298617,1762432242142,-893.73840764,0.00017801,2]
[393298618,1762432242151,-500.0,0.00017854,2]
[393298619,1762432242160,-500.0,0.00017854,2]
[393298620,1762432242171,-2000.0,0.00017855,2]
[393298621,1762432242180,-200.0,0.00017855,2]
[393298622,1762432242188,-2000.0,0.00017856,2]
[393298623,1762432242197,-200.0,0.00017856,2]
[393298624,1762432242206,-171.38085205,0.000179,2]
[393298625,1762432242217,-3594.05173692,0.000179,2]
[393298626,1762432242226,-325.03961076,0.000179,2]
[393298627,1762432242235,-1170.0,0.00017902,2]
[393298628,1762432242246,-4474.59379,0.0001791,2]
[393298629,1762432242254,-176.193,0.0001793,2]
[393298630,1762432242265,-1170.0,0.00017944,2]
[393298631,1762432242274,-152.54268606,0.00017954,2]
[393298632,1762432242283,-150.0,0.00017954,2]
[393298633,1762432242293,-150.0,0.00017954,2]
[393298634,1762432242301,-150.0,0.00017954,2]
[393298635,1762432242310,-202.37031601,0.00017954,2]
[393298636,1762432242319,-150.0,0.00017954,2]
[393298637,1762432242328,-150.0,0.00017954,2]
[393298638,1762432242338,-150.0,0.00017954,2]
[393298639,1762432242348,-500.0,0.00017954,2]
[393298640,1762432242357,-150.0,0.00017954,2]
[393298641,1762432242367,-574.0,0.00017954,2]
[393298642,1762432242377,-150.0,0.00017954,2]
[393298643,1762432242386,-150.0,0.00017954,2]
[393298644,1762432242395,-500.0,0.00017954,2]
[393298645,1762432242404,-2556.571,0.00017954,2]
[393298646,1762432242413,-500.0,0.00017954,2]
[393298647,1762432242423,-150.0,0.00017954,2]
[393298648,1762432242431,-500.0,0.00017954,2]
[393298649,1762432242441,-150.0,0.00017954,2]
[393298650,1762432242451,-500.0,0.00017954,2]
[393298651,1762432242461,-500.0,0.00017954,2]
[393298652,1762432242470,-500.0,0.00017954,2]
[393298653,1762432242478,-500.0,0.00017954,2]
[393298654,1762432242487,-408.3599179,0.00017954,2]
[393298655,1762432242497,-155.32587022,0.00017954,2]
[393298656,1762432242507,-150.68663309,0.00017954,2]
[393298657,1762432242515,-500.0,0.00017954,2]
[393298658,1762432242524,-300.0,0.00017954,2]
[393298659,1762432242534,-150.0,0.00017954,2]
[393298660,1762432242543,-187.85515074,0.00017954,2]
[393298661,1762432242552,-150.0,0.00017954,2]
[393298662,1762432242561,-150.0,0.00017954,2]
[393298663,1762432242570,-500.0,0.00017954,2]
[393298664,1762432242579,-163.34,0.00017954,2]
[393298665,1762432242588,-1170.0,0.00017956,2]
[393298666,1762432242598,-184383.1682686,0.00017964,2]
[393298667,1762432242607,-1404.87851,0.00017964,2]
[393298668,1762432242616,-1157.382438,0.00017964,2]
[393298669,1762432242629,-500.0,0.00017973,2]
[393298670,1762432242640,-500.0,0.00017973,2]
[393298671,1762432242649,-500.0,0.00017973,2]
[393298672,1762432242658,-219.65200309,0.00017973,2]
[393298673,1762432242668,-500.0,0.00017973,2]
[393298674,1762432242677,-500.0,0.00017973,2]
[393298675,1762432242686,-500.0,0.00017973,2]
[393298676,1762432242695,-500.0,0.00017973,2]
[393298677,1762432242706,-150.12458609,0.00017973,2]
[393298678,1762432242715,-369.54119436,0.00017973,2]
[393298679,1762432242724,-500.0,0.00017973,2]
[393298680,1762432242733,-500.0,0.00017973,2]
[393298681,1762432242742,-500.0,0.00017973,2]
[393298682,1762432242752,-500.0,0.00017973,2]
[393298683,1762432242761,-299.86343044,0.00017973,2]
[393298684,1762432242771,-163.34,0.0001799,2]
[393298685,1762432242780,-163.34,0.0001799,2]
[393298686,1762432242791,-577.01,0.00017997,2]
[393298687,1762432242800,-577.01,0.00017997,2]
[393298688,1762432242809,-1304.90558406,0.00017999,5]
[393298689,1762432242819,-1304.90558406,0.00017999,5]
[393298690,1762432242828,-1304.90558406,0.00017999,5]
[393298691,1762432242837,-577.01,0.00017999,2]
[393298692,1762432242846,-577.01,0.00017999,2]
[393298693,1762432242855,-577.01,0.00017999,2]
[393298694,1762432242863,-577.01,0.00017999,2]
[393298695,1762432242872,-577.01,0.00017999,2]
[393298696,1762432242881,-577.01,0.00017999,2]
[393298697,1762432242890,-577.01,0.00017999,2]
[393298698,1762432242899,-577.01,0.00017999,2]
[393298699,1762432242907,-577.01,0.00017999,2]
[393298700,1762432242916,-577.01,0.00017999,2]
[393298701,1762432242925,-577.01,0.00017999,2]
[393298702,1762432242934,-577.01,0.00017999,2]
[393298703,1762432242943,-577.01,0.00017999,2]
[393298704,1762432242952,-577.01,0.00017999,2]
[393298705,1762432242962,-577.01,0.00017999,2]
[393298706,1762432242971,-577.01,0.00017999,2]
[393298707,1762432242980,-577.01,0.00017999,2]
[393298708,1762432242988,-577.01,0.00017999,2]
[393298710,1762432242998,-577.01,0.00017999,2]
[393298713,1762432243007,-577.08663304,0.00017999,2]
[393298716,1762432243016,-500.0,0.00017999,2]
[393298717,1762432243026,-500.0,0.00017999,2]
[393298718,1762432243035,-500.0,0.00017999,2]
[393298719,1762432243044,-500.0,0.00017999,2]
[393298720,1762432243053,-395.1,0.00017999,2]
[393298721,1762432243063,-1000.0,0.00017999,2]
[393298722,1762432243075,-319.95081928,0.00017999,2]
[393298723,1762432243084,-666.0,0.00017999,2]
[393298724,1762432243093,-666.0,0.00017999,2]
[393298725,1762432243102,-300.0,0.00017999,2]
[393298726,1762432243111,-3183.0,0.00018,2]
[393298727,1762432243120,-2327356.26207012,0.00018,2]
[393298728,1762432243334,500.0,0.00014999,2]
[393298729,1762432243390,350.0,0.00014999,2]
[393298730,1762432243418,-250.0,0.00018,2]
[393298731,1762432243533,-318030.21677619,0.00018,2]
[393298735,1762432246152,-3423.0,0.000177,2]
[393298736,1762432246161,-350.89018623,0.00018,2]
[393298737,1762432246209,-793.57009274,0.00018,2]
[393298738,1762432246589,-436.4910553,0.00018,2]
[393298739,1762432246829,-537.43491328,0.00018,2]
[393298742,1762432261491,200.0,0.00038708,30]
[393298743,1762432353743,500.0,0.00014999,2]
[393298744,1762432353975,500.0,0.00014999,2]
[393298745,1762432354224,500.0,0.00014999,2]
[393298746,1762432387135,10535.6,0.00038708,120]
[393298747,1762432387378,10535.6,0.00038708,120]
[393298748,1762432387654,10535.6,0.00038708,120]
[393298749,1762432387901,10535.6,0.00038708,120]
[393298750,1762432388155,10535.6,0.00038708,120]
[393298751,1762432388417,10535.6,0.00038708,120]
[393298752,1762432388700,10535.6,0.00038708,120]
[393298753,1762432388929,10535.6,0.00038708,120]
[393298754,1762432389201,10535.6,0.00038708,120]
[393298755,1762432389437,10535.6,0.00038708,120]
[393298756,1762432389680,10535.6,0.00038708,120]
[393298757,1762432389913,10535.6,0.00038708,120]
[393298758,1762432390178,10535.6,0.00038708,120]
[393298759,1762432390417,10535.6,0.00038708,120]
[393298760,1762432390671,10535.6,0.00038708,120]
[393298761,1762432390913,10535.6,0.00038708,120]
[393298762,1762432391148,10535.6,0.00038708,120]
[393298763,1762432391387,10535.6,0.00038708,120]
[393298764,1762432391616,10535.6,0.00038708,120]
[393298765,1762432392040,10535.6,0.00038708,120]
[393298766,1762432392132,10535.6,0.00038708,120]
[393298767,1762432392373,10535.6,0.00038708,120]
[393298768,1762432392614,10535.6,0.00038708,120]
[393298769,1762432392854,10535.62776833,0.00038708,120]
[393298770,1762432393225,150.0,0.00017087,120]
[393298771,1762432518925,4738853.41397858,0.00030137,120]
[393298772,1762432537954,319.95081928,0.00014999,2]
[393298774,1762432561044,200.0,0.00038708,30]
[393298775,1762432631424,999.0,0.00016694,3]
[393298776,1762432739694,574.14159547,0.00014999,2]
[393298777,1762432751893,10166.83627594,0.00038693,30]
[393298778,1762432761016,500.0,0.00014999,2]
[393298779,1762432843886,307.45218061,0.00014999,2]
[393298780,1762432941481,500.0,0.00013001,2]
[393298781,1762432941834,500.0,0.00013001,2]
[393298782,1762432942692,515.56282348,0.00013,2]
[393298783,1762432997837,151.0,0.00014999,2]
[393298784,1762432997873,151.0,0.00014999,2]
[393298785,1762433000038,151.0,0.00014999,2]
[393298786,1762433000469,239.51637354,0.00014999,2]
[393298797,1762433298491,151.0,0.00014999,2]
[393298804,1762433432198,-422.52576524,0.0001606,2]
[393298805,1762433432210,-912.68765554,0.0001606,2]
[393298806,1762433432220,-166.66,0.00016138,2]
[393298807,1762433432229,-310.92001403,0.00016243,2]
[393298808,1762433432239,-3369.21,0.0001638,2]
[393298809,1762433432248,-300.0,0.00016382,2]
[393298810,1762433432258,-460.33366835,0.00016382,2]
[393298811,1762433432270,-739.66633165,0.00016382,2]
[393298812,1762433432279,-541.16116052,0.00016383,2]
[393298813,1762433432304,-3299.68386106,0.00016383,2]
[393298814,1762433432414,-692.17497842,0.00016383,2]
[393298815,1762433432424,-500.0,0.00016387,2]
[393298816,1762433432433,-500.0,0.00016426,2]
[393298817,1762433432443,-166.66,0.00016478,2]
[393298818,1762433432452,-395.1,0.00016491,2]
[393298819,1762433432461,-459.98516592,0.00016499,2]
[393298820,1762433432471,-500.0,0.00016632,2]
[393298821,1762433432480,-500.0,0.00016632,2]
[393298822,1762433432489,-500.0,0.00016632,2]
[393298823,1762433432498,-497.1073238,0.00016632,2]
[393298824,1762433432507,-300.0,0.00016632,2]
[393298825,1762433432517,-300.0,0.00016632,2]
[393298826,1762433432527,-151.0,0.00016633,2]
[393298827,1762433432536,-151.0,0.00016633,2]
[393298828,1762433432545,-151.0,0.00016633,2]
[393298829,1762433432555,-151.0,0.00016633,2]
[393298830,1762433432567,-151.0,0.00016633,2]
[393298831,1762433432575,-151.0,0.00016633,2]
[393298832,1762433432585,-151.0,0.00016633,2]
[393298833,1762433432595,-151.0,0.00016633,2]
[393298834,1762433432604,-151.0,0.00016633,2]
[393298835,1762433432614,-151.0,0.00016633,2]
[393298836,1762433432623,-151.0,0.00016633,2]
[393298837,1762433432633,-151.0,0.00016633,2]
[393298838,1762433432642,-151.0,0.00016633,2]
[393298839,1762433432651,-151.0,0.00016633,2]
[393298840,1762433432660,-151.0,0.00016633,2]
[393298841,1762433432670,-151.0,0.00016633,2]
[393298842,1762433432679,-151.0,0.00016633,2]
[393298843,1762433432688,-151.0,0.00016633,2]
[393298844,1762433432698,-151.0,0.00016633,2]
[393298845,1762433432707,-151.0,0.00016633,2]
[393298846,1762433432716,-3926.83,0.00016643,2]
[393298847,1762433432726,-150.99,0.00016643,2]
[393298848,1762433432737,-583.04,0.00016707,2]
[393298849,1762433432748,-166.66,0.00016818,2]
[393298850,1762433432758,-310.92001401,0.00016982,2]
[393298851,1762433432767,-282.0,0.00016994,2]
[393298852,1762433432777,-444.0,0.00016994,2]
[393298853,1762433432790,-316.74901112,0.00017,2]
[393298854,1762433432799,-465.0,0.00017028,2]
[393298855,1762433432808,-476.22,0.00017041,2]
[393298856,1762433432818,-477.12,0.00017041,2]
[393298857,1762433432828,-477.03,0.00017041,2]
[393298858,1762433432839,-953.88,0.00017041,2]
[393298859,1762433432848,-328.0,0.00017062,2]
[393298860,1762433432858,-150.0,0.00017087,2]
[393298861,1762433432868,-353.0,0.00017096,2]
[393298862,1762433432877,-245.1,0.00017115,2]
[393298863,1762433432888,-415.0,0.0001713,2]
[393298864,1762433432897,-500.0,0.0001715,2]
[393298865,1762433432907,-166.66,0.00017158,2]
[393298866,1762433432916,-387.0,0.00017164,2]
[393298867,1762433432925,-353.48,0.00017178,2]
[393298868,1762433432935,-176.91,0.00017178,2]
[393298869,1762433432944,-176.91,0.00017178,2]
[393298870,1762433432953,-575.3,0.00017178,2]
[393298871,1762433433194,-291.0,0.00017197,2]
[393298872,1762433433204,-927.13,0.000172,2]
[393298873,1762433433214,-490.0,0.00017231,2]
[393298874,1762433433223,-319.0,0.00017265,2]
[393298875,1762433433232,-315.0,0.00017299,2]
[393298876,1762433433241,-470.0,0.00017333,2]
[393298877,1762433433251,-290.0,0.00017367,2]
[393298878,1762433433261,-464.0,0.00017401,2]
[393298879,1762433433271,-168.0,0.00017485,2]
[393298880,1762433433280,-168.0,0.0001749,2]
[393298881,1762433433290,-166.66,0.00017497,2]
[393298882,1762433433300,-166.66,0.00017512,2]
[393298883,1762433433309,-151.38,0.00017531,2]
[393298884,1762433433318,-500.0,0.00017671,2]
[393298885,1762433433328,-168.0,0.00017672,2]
[393298886,1762433433340,-1000.0,0.00017698,2]
[393298887,1762433433349,-168.0,0.00017712,2]
[393298888,1762433433359,-310.92001401,0.0001772,2]
[393298889,1762433433368,-300.0,0.00017752,2]
[393298890,1762433433378,-300.0,0.00017752,2]
[393298891,1762433433388,-300.0,0.00017752,2]
[393298892,1762433433398,-300.0,0.00017752,2]
[393298893,1762433433408,-300.0,0.00017752,2]
[393298894,1762433433418,-176.193,0.00017753,2]
[393298895,1762433433427,-300.0,0.00017769,2]
[393298896,1762433433436,-2045.257,0.00017797,2]
[393298897,1762433433445,-201.43477536,0.000178,2]
[393298898,1762433433454,-510.16927509,0.000178,2]
[393298899,1762433433463,-279.7504,0.000178,2]
[393298900,1762433433475,-3849.42694985,0.000178,2]
[393298901,1762433433485,-909.1089,0.000178,2]
[393298902,1762433433494,-4061.9302,0.000178,2]
[393298903,1762433433504,-510.16927506,0.00017811,2]
[393298904,1762433433513,-3849.42694978,0.00017811,2]
[393298905,1762433433522,-3754.94683,0.0001782,2]
[393298906,1762433433531,-510.16927506,0.00017822,2]
[393298907,1762433433541,-3849.42694978,0.00017822,2]
[393298908,1762433433550,-510.16927506,0.00017833,2]
[393298909,1762433433560,-3849.42694978,0.00017833,2]
[393298910,1762433433570,-166.66,0.00017837,2]
[393298911,1762433433582,-168.0,0.00017841,2]
[393298912,1762433433591,-510.16927506,0.00017844,2]
[393298913,1762433433600,-3849.42694978,0.00017844,2]
[393298914,1762433433609,-510.16927506,0.00017856,2]
[393298915,1762433433619,-3849.42694978,0.00017856,2]
[393298916,1762433433629,-2000.0,0.00017856,2]
[393298917,1762433433640,-200.0,0.00017856,2]
[393298918,1762433433649,-510.16927506,0.00017867,2]
[393298919,1762433433658,-3522.91464561,0.00017867,2]
[393298920,1762433436472,-326.51230417,0.00017867,2]
[393298921,1762433436482,-510.16927506,0.00017878,2]
[393298922,1762433436492,-1081.04409929,0.00017878,2]
[393298950,1762433438203,-819.15399918,0.00017878,2]
[393298951,1762433438262,-1949.22885131,0.00017878,2]
[393298952,1762433438272,-510.16927506,0.00017889,2]
[393298953,1762433438282,-1995.9644617,0.00017889,2]
[393298972,1762433440295,-1853.46248808,0.00017889,2]
[393298973,1762433440304,-300.87493199,0.00017899,2]
[393298974,1762433440314,-177.09656274,0.00017899,2]
[393298975,1762433440323,-500.0,0.00017899,2]
[393298976,1762433440332,-262.65314706,0.00017899,2]
[393298977,1762433440344,-236.46123933,0.00017899,2]
[393298978,1762433440353,-500.0,0.00017899,2]
[393298979,1762433440362,-500.0,0.00017899,2]
[393298980,1762433440371,-696.23,0.00017899,2]
[393298981,1762433440382,-696.23,0.00017899,2]
[393298982,1762433440391,-500.0,0.00017899,2]
[393298983,1762433440401,-500.0,0.00017899,2]
[393298984,1762433440411,-500.0,0.00017899,2]
[393298985,1762433440420,-500.0,0.00017899,2]
[393298986,1762433440430,-500.0,0.00017899,2]
[393298987,1762433440440,-500.0,0.00017899,2]
[393298988,1762433440450,-266.938,0.00017899,2]
[393298989,1762433440459,-25687.7308,0.000179,2]
[393298990,1762433440468,-420000.0,0.000179,2]
[393298991,1762433440477,-532.88987397,0.000179,2]
[393298992,1762433440486,-532.88987397,0.000179,2]
[393298993,1762433440496,-1000.0,0.000179,2]
[393298994,1762433440504,-5000.0,0.000179,2]
[393298995,1762433440514,-510.16927506,0.000179,2]
[393298996,1762433440523,-3849.42694978,0.000179,2]
[393298997,1762433440532,-500.0,0.000179,2]
[393298998,1762433440541,-500.0,0.000179,2]
[393298999,1762433440550,-500.0,0.000179,2]
[393299000,1762433440559,-500.0,0.000179,2]
[393299001,1762433440569,-500.0,0.000179,2]
[393299002,1762433440579,-500.0,0.000179,2]
[393299003,1762433440590,-500.0,0.000179,2]
[393299004,1762433440599,-500.0,0.000179,2]
[393299005,1762433440608,-500.0,0.000179,2]
[393299006,1762433440617,-500.0,0.000179,2]
[393299007,1762433440626,-500.0,0.000179,2]
[393299008,1762433440635,-500.0,0.000179,2]
[393299009,1762433440645,-500.0,0.000179,2]
[393299010,1762433440654,-500.0,0.000179,2]
[393299011,1762433440663,-500.0,0.000179,2]
[393299012,1762433440672,-500.0,0.000179,2]
[393299013,1762433440681,-500.0,0.000179,2]
[393299014,1762433440690,-500.0,0.000179,2]
[393299015,1762433440699,-283.09154533,0.000179,2]
[393299016,1762433440707,-168.0,0.00017905,2]
[393299017,1762433440716,-150.0,0.00017954,2]
[393299018,1762433440725,-150.0,0.00017954,2]
[393299019,1762433440734,-500.0,0.00017954,2]
[393299020,1762433440743,-150.0,0.00017954,2]
[393299021,1762433440752,-150.0,0.00017954,2]
[393299022,1762433440761,-150.0,0.00017954,2]
[393299023,1762433440770,-500.0,0.00017954,2]
[393299024,1762433440781,-300.0,0.00017954,2]
[393299025,1762433440792,-500.0,0.00017954,2]
[393299026,1762433440801,-150.0,0.00017954,2]
[393299027,1762433440810,-550.0,0.00017954,2]
[393299028,1762433440821,-150.0,0.00017954,2]
[393299029,1762433440829,-150.0,0.00017954,2]
[393299030,1762433440838,-500.0,0.00017954,2]
[393299031,1762433440848,-219.92776545,0.00017954,2]
[393299032,1762433440857,-500.0,0.00017954,2]
[393299033,1762433440867,-500.0,0.00017954,2]
[393299034,1762433440876,-500.0,0.00017973,2]
[393299035,1762433440886,-500.0,0.00017973,2]
[393299036,1762433440897,-500.0,0.00017973,2]
[393299037,1762433440907,-500.0,0.00017973,2]
[393299038,1762433440917,-500.0,0.00017973,2]
[393299039,1762433440927,-500.0,0.00017973,2]
[393299040,1762433440939,-500.0,0.00017973,2]
[393299041,1762433440949,-500.0,0.00017973,2]
[393299042,1762433440958,-500.0,0.00017973,2]
[393299043,1762433440968,-500.0,0.00017973,2]
[393299044,1762433440980,-536.65406612,0.00017973,2]
[393299045,1762433440989,-500.0,0.00017973,2]
[393299046,1762433440998,-180.69,0.00017989,2]
[393299047,1762433441007,-152.00625849,0.00017989,2]
[393299048,1762433441017,-150.0,0.00017989,2]
[393299049,1762433441026,-150.0,0.00017989,2]
[393299050,1762433441035,-1680.0,0.00017993,2]
[393299051,1762433441045,-9158.37382601,0.00017999,2]
[393299052,1762433441057,-500.0,0.00017999,2]
[393299053,1762433441066,-500.0,0.00017999,2]
[393299054,1762433441075,-500.0,0.00017999,2]
[393299055,1762433441084,-500.0,0.00017999,2]
[393299056,1762433441093,-500.0,0.00017999,2]
[393299057,1762433441102,-385.12663304,0.00017999,2]
[393299058,1762433441111,-296.87113101,0.00017999,2]
[393299059,1762433441120,-155.0,0.00017999,2]
[393299060,1762433441130,-500.0,0.00017999,2]
[393299061,1762433441139,-500.0,0.00017999,2]
[393299062,1762433441148,-500.0,0.00017999,2]
[393299063,1762433441157,-500.0,0.00017999,2]
[393299064,1762433441166,-500.0,0.00017999,2]
[393299065,1762433441176,-500.0,0.00017999,2]
[393299066,1762433441185,-500.0,0.00017999,2]
[393299067,1762433441194,-500.0,0.00017999,2]
[393299068,1762433441203,-500.0,0.00017999,2]
[393299069,1762433441212,-500.0,0.00017999,2]
[393299070,1762433441221,-500.0,0.00017999,2]
[393299071,1762433441231,-500.0,0.00017999,2]
[393299072,1762433441240,-500.0,0.00017999,2]
[393299073,1762433441249,-500.0,0.00017999,2]
[393299074,1762433441258,-500.0,0.00017999,2]
[393299075,1762433441270,-500.0,0.00017999,2]
[393299076,1762433441279,-500.0,0.00017999,2]
[393299077,1762433441289,-500.0,0.00017999,2]
[393299078,1762433441298,-588.67,0.00017999,2]
[393299079,1762433441307,-666.0,0.00017999,2]
[393299080,1762433441316,-500.0,0.00017999,2]
[393299081,1762433441324,-500.0,0.00017999,2]
[393299082,1762433441339,-500.0,0.00017999,2]
[393299083,1762433441348,-500.0,0.00017999,2]
[393299084,1762433441358,-531.1,0.00017999,2]
[393299085,1762433441368,-1304.90558406,0.00017999,5]
[393299086,1762433441377,-696.23,0.00017999,2]
[393299087,1762433441386,-696.23,0.00017999,2]
[393299088,1762433441395,-696.23,0.00017999,2]
[393299089,1762433441404,-696.23,0.00017999,2]
[393299090,1762433441414,-696.23,0.00017999,2]
[393299091,1762433441423,-696.23,0.00017999,2]
[393299092,1762433441433,-696.23,0.00017999,2]
[393299093,1762433441442,-696.23,0.00017999,2]
[393299094,1762433441451,-696.23,0.00017999,2]
[393299095,1762433441459,-696.23,0.00017999,2]
[393299096,1762433441470,-696.23,0.00017999,2]
[393299097,1762433441479,-696.23,0.00017999,2]
[393299098,1762433441489,-696.23,0.00017999,2]
[393299099,1762433441498,-696.23,0.00017999,2]
[393299100,1762433441507,-696.23,0.00017999,2]
[393299101,1762433441516,-696.23,0.00017999,2]
[393299102,1762433441525,-696.23,0.00017999,2]
[393299103,1762433441535,-696.23,0.00017999,2]
[393299104,1762433441543,-696.23,0.00017999,2]
[393299105,1762433441552,-696.23,0.00017999,2]
[393299106,1762433441563,-696.23,0.00017999,2]
[393299107,1762433441572,-696.33,0.00017999,2]
[393299108,1762433441582,-1304.90558406,0.00017999,5]
[393299109,1762433441594,-666.0,0.00017999,2]
[393299110,1762433441604,-500.0,0.00017999,2]
[393299111,1762433441614,-1304.90558406,0.00017999,5]
[393299112,1762433441623,-500.0,0.00017999,2]
[393299113,1762433441634,-500.0,0.00017999,2]
[393299114,1762433441644,-500.0,0.00017999,2]
[393299115,1762433441654,-500.0,0.00017999,2]
[393299116,1762433441663,-500.0,0.00017999,2]
[393299117,1762433441673,-500.0,0.00017999,2]
[393299118,1762433441683,-500.0,0.00017999,2]
[393299119,1762433441693,-500.0,0.00017999,2]
[393299120,1762433441705,-500.0,0.00017999,2]
[393299121,1762433441714,-500.0,0.00017999,2]
[393299122,1762433441725,-500.0,0.00017999,2]
[393299123,1762433441735,-500.0,0.00017999,2]
[393299124,1762433441745,-500.0,0.00017999,2]
[393299125,1762433441755,-500.0,0.00017999,2]
[393299126,1762433441765,-500.0,0.00017999,2]
[393299127,1762433441774,-500.0,0.00017999,2]
[393299128,1762433441784,-500.0,0.00017999,2]
[393299129,1762433441794,-500.0,0.00017999,2]
[393299130,1762433441803,-500.0,0.00017999,2]
[393299131,1762433441812,-500.0,0.00017999,2]
[393299132,1762433441823,-500.0,0.00017999,2]
[393299133,1762433441831,-500.0,0.00017999,2]
[393299134,1762433441840,-500.0,0.00017999,2]
[393299135,1762433441850,-500.0,0.00017999,2]
[393299136,1762433441859,-500.0,0.00017999,2]
[393299137,1762433441869,-500.0,0.00017999,2]
[393299138,1762433441878,-500.0,0.00017999,2]
[393299139,1762433441887,-500.0,0.00017999,2]
[393299140,1762433441897,-500.0,0.00017999,2]
[393299141,1762433441907,-641.04319318,0.00017999,2]
[393299142,1762433441916,-500.0,0.00017999,2]
[393299143,1762433441926,-500.0,0.00017999,2]
[393299144,1762433441936,-165.68,0.00017999,2]
[393299145,1762433441946,-300.0,0.00017999,2]
[393299146,1762433441955,-666.0,0.00017999,2]
[393299147,1762433441964,-150.0,0.00017999,2]
[393299148,1762433441974,-500.0,0.00017999,2]
[393299149,1762433441984,-500.0,0.00017999,2]
[393299150,1762433441996,-500.0,0.00017999,2]
[393299151,1762433442005,-500.0,0.00017999,2]
[393299152,1762433442014,-500.0,0.00017999,2]
[393299153,1762433442024,-500.0,0.00017999,2]
[393299154,1762433442033,-500.0,0.00017999,2]
[393299155,1762433442043,-228.44372178,0.00017999,2]